Cogmind - Beta 17 @@@ ROGUE MODE // 2026.06.26 @ 18:28:04 Player: HybriD Result: Destroyed by TR-GIA(R) with Subdweller Beam Cannon Performance ------------- Evolutions (0) 0 Regions Visited (2) 400 Robots Destroyed (13) 65 Value Destroyed (201) 201 Prototype IDs (2) 40 Alien Tech Used (0) 0 Bonus (0) 0 TOTAL SCORE: 706 Bonus ------- None Cogmind --------- Core Integrity 0/250 Matter 300/300 Energy 200/200 System Corruption 0% Temperature Cool (9) Movement Walking (120) Location -10/Subcaves Parts ------- > --- POWER (1) -------- Subdweller Power Source > --- PROPULSION (2) --- Aluminum Leg Myomer Leg > --- UTILITY (2) ------ Small Storage Unit > --- WEAPON (2) ------- Light Assault Rifle > --- INVENTORY (8) ---- Ion Engine Aluminum Leg Terrain Scanner Targeting Computer Scrap Shield Medium Laser Subdweller Shrapnel Launcher Peak State ------------ > --- POWER ------------ Subdweller Power Source > --- PROPULSION ------- Aluminum Leg Myomer Leg > --- UTILITY ---------- Small Storage Unit Structural Scanner > --- WEAPON ----------- Light Assault Rifle > --- INVENTORY -------- Ion Engine Aluminum Leg Terrain Scanner Targeting Computer Scrap Shield Medium Laser Subdweller Shrapnel Launcher [Rating: 14] Favorites ----------- Power Ion Engine Engine Ion Engine Propulsion Aluminum Leg Leg Aluminum Leg Utility Small Storage Unit Device Structural Scanner Storage Small Storage Unit Weapon Light Assault Rifle Energy Gun Small Laser Ballistic Gun Light Assault Rifle Build | -11 -10 -10 ------- Run | Yrd Mat Sub Slots Evolved . | . . . Power . | . . . Propulsion . | . . . Utility . | . . . Weapon . | . . . Parts Attached 14 | 6 5 3 Power 3 | 1 1 1 Engine 3 | 1 1 1 Core . | . . . Reactor . | . . . Propulsion 6 | 2 3 1 Treads . | . . . Leg 6 | 2 3 1 Wheel . | . . . Hover . | . . . Flight . | . . . Utility 2 | 1 1 . Device 1 | . 1 . Storage 1 | 1 . . Processor . | . . . Hackware . | . . . Protection . | . . . Artifact . | . . . Weapon 3 | 2 . 1 Energy Gun 1 | 1 . . Energy Cannon . | . . . Ballistic Gun 2 | 1 . 1 Ballistic Cannon . | . . . Launcher . | . . . Special Weapon . | . . . Impact Weapon . | . . . Slashing Weapon . | . . . Piercing Weapon . | . . . Special Melee Weapon . | . . . Unidentified Prototypes . | . . . Parts Lost 4 | . 2 2 Power 1 | . 1 . Propulsion 1 | . 1 . Utility 1 | . . 1 Weapon 1 | . . 1 Highest Loss Streak 2 | . 1 2 To Critical Strikes . | . . . Average Backups 6 | 1 6 7 Power 1 | . 1 1 Propulsion . | . . 1 Utility 2 | . 2 3 Weapon 2 | . 2 2 Tool/Special . | . . . Unused Backups 8 | . . 8 Power 1 | . . 1 Propulsion . | . . . Utility 4 | . . 4 Weapon 3 | . . 3 Tool/Special . | . . . Average Slot Usage (%) 98 | . 97 100 Engine 13 | . 13 14 Leg 27 | . 27 28 Device 12 | . 12 14 Storage 14 | . 14 14 Energy Gun 14 | . 14 14 Ballistic Gun 14 | . 14 14 Peak Build Rating 14 | 6 7 14 Average Rating 6 | 4 6 8 On Entrance 4 | . 6 7 Avg Prop Armor Cover (%) . | . . . Naked Turns . | . . . Heaviest Build 13 | 10 13 13 Greatest Support 35 | 20 20 35 Greatest Overweight (x) 1 | . 1 . Average Overweight (x) . | . . . Largest Inventory Capacity 8 | 8 8 8 Average Capacity 7 | 7 8 8 Most Carried 8 | 5 8 8 Average Carried 6 | 2 6 7 Final Capacity 8 | 8 8 8 Final Carried 8 | 2 8 8 Class Distribution -------------------- 100% | Mutant Dominant Class ---------------- Mutant | -10/Materials Mutant | -10/Subcaves Resources | -11 -10 -10 ----------- Run | Yrd Mat Sub Matter Collected 387 | 159 194 34 Remotely . | . . . Salvage Created 308 | . 276 32 Parts 23 | . 19 4 Haulers Intercepted . | . . . Recyclers Shooed 1 | . 1 . Parts Field Recycled . | . . . Retrieved Matter . | . . . Parts Self-Destructed 11 | . . 11 Prevented . | . . . Parts Restored . | . . . Kills | -11 -10 -10 ------- Run | Yrd Mat Sub Combat Hostiles Destroyed 11 | . 9 2 Guns 11 | . 9 2 Classes Destroyed 4 | . 4 . Worker 1 | . 1 . Builder 1 | . 1 . Swarmer 8 | . 6 2 Grunt 3 | . 3 . Best Kill Streak 5 | . 5 2 Combat Bots Only 4 | . 4 2 Max Kills in Single Turn 2 | . 2 2 Gunslinging 1 | . . 1 Exploded . | . . . Melee . | . . . Uniques/NPCs Destroyed . | . . . Combat | -11 -10 -10 -------- Run | Yrd Mat Sub Hostile Shots Fired 92 | . 63 29 Missed 24 | . 15 9 Hits 68 | . 48 20 Projectile 68 | . 48 20 Damage Taken 883 | . 472 411 Core 267 | . 99 168 Absorbed by Shields . | . . . Core Remaining (%) 100 | 100 . . Volleys Fired 57 | . 48 9 Largest 2 | . 2 2 Hottest 60 | . 60 60 Shots Fired 111 | . 95 16 Gun 111 | . 95 16 Cannon . | . . . Launcher . | . . . Special . | . . . Kinetic 57 | . 48 9 Thermal 54 | . 47 7 Explosive . | . . . Electromagnetic . | . . . Robot Hit Streak 10 | . 10 4 Robot Miss Streak 4 | . 3 4 Penetration Max . | . . . Secondary Targets 2 | . 1 1 Max Gunslinging Chain 1 | . 1 1 Shots Hit Robots 65 | . 56 9 Core Hits 20 | . 18 2 Critical Kills 1 | . 1 . Critical Parts Destroyed . | . . . Critical Strikes 1 | . 1 . Destroy 1 | . 1 . Melee Attacks . | . . . Impact . | . . . Slashing . | . . . Piercing . | . . . Sneak Attacks . | . . . Combat Hostiles . | . . . Follow-up Attacks . | . . . Damage Inflicted 647 | . 552 95 Guns 647 | . 552 95 Cannons . | . . . Explosions . | . . . Melee . | . . . Ramming . | . . . Kinetic 272 | . 208 64 Thermal 375 | . 344 31 Explosive . | . . . Electromagnetic . | . . . Impact . | . . . Slashing . | . . . Piercing . | . . . Highest Corruption . | . . . Average Corruption . | . . . Corruption Purged . | . . . Corruption Blocked . | . . . Overload Shots . | . . . Overflow Damage . | . . . Projectiles . | . . . Explosions . | . . . Melee . | . . . Knockbacks . | . . . Impact . | . . . Kinetic . | . . . Secondary . | . . . Self-Inflicted Damage . | . . . Shots . | . . . Rammed . | . . . Targets Rammed . | . . . Kicked . | . . . Crushed . | . . . Highest Temperature 161 | . 161 . Average Temperature 45 | . 45 . Received Heat Transfer 192 | . 156 36 Siege Activations . | . . . Martial Activations . | . . . Shielding Activations . | . . . Robots Disrupted . | . . . Combat Hostiles . | . . . Robots Corrupted . | . . . Combat Hostiles . | . . . Parts Fried . | . . . Impact Corruptions . | . . . Robots Melted . | . . . Combat Hostiles . | . . . Parts Melted 2 | . 2 . Heat Transferred 850 | . 775 75 Parts Sabotaged . | . . . Parts Stolen . | . . . Parts Stripped . | . . . Power Chain Reactions . | . . . Alert | -11 -10 -10 ------- Run | Yrd Mat Sub Maximum Alert Level . | . . . Low Security (%) 100 | 100 100 . Level 1 . | . . . Level 2 . | . . . Level 3 . | . . . Level 4 . | . . . Level 5 . | . . . High Security . | . . . Max Security . | . . . Peak Influence 106 | . 106 . Initial . | . . . Average 32 | . 35 . Influence Increases 363 | . 298 65 Destroy 0b10 Robot/C 220 | . 180 40 Destroy 0b10 Robot/NC 10 | . 10 . Destroy Leader 50 | . 40 10 Successful Hack 38 | . 38 . Lose Combat Pursuer 45 | . 30 15 Influence Decreases 351 | . 264 87 Entered New Map 17 | . . 17 Time Decay 294 | . 244 50 Lost Part 40 | . 20 20 Squads Dispatched 1 | . 1 . Investigation . | . . . Extermination . | . . . Reinforcement 1 | . 1 . Assault . | . . . Garrison . | . . . Intercept . | . . . Searches Triggered . | . . . Construction Impeded . | . . . Haulers Reinforced . | . . . Active Scanning Responses . | . . . Cargo Convoy Interrupts . | . . . Stealth | -11 -10 -10 --------- Run | Yrd Mat Sub Distress Signals 2 | . 2 . Communications Jammed . | . . . Distress Signals . | . . . Times Spotted 28 | . 17 11 Peak Tracking Total 6 | . 4 6 Tactical Retreats 3 | . 2 1 Traps | -11 -10 -10 ------- Run | Yrd Mat Sub Traps Triggered . | . . . Indirectly . | . . . Trap Hack Attempts . | . . . Triggered . | . . . Disarmed . | . . . Reprogrammed . | . . . Reused . | . . . Traps Extracted . | . . . Installed . | . . . Triggered . | . . . Machines | -11 -10 -10 ---------- Run | Yrd Mat Sub Machines Disabled . | . . . Max in Single Turn . | . . . Machines Repaired . | . . . Machines Dismantled . | . . . Machines Sabotaged . | . . . Overloaded Fab Kills . | . . . Hacking | -11 -10 -10 --------- Run | Yrd Mat Sub Machines Accessed 5 | . 5 . Terminals 4 | . 4 . Fabricators . | . . . Repair Stations . | . . . Recycling Units 1 | . 1 . Scanalyzers . | . . . Garrison Access . | . . . Total Hacks 19 | . 19 . Successful 10 | . 10 . Failed 9 | . 9 . Catastrophic 1 | . 1 . Database Lockouts . | . . . Manual . | . . . Terminals 16 | . 16 . Fabricators . | . . . Repair Stations . | . . . Recycling Units 3 | . 3 . Scanalyzers . | . . . Garrison Access . | . . . Terminal Hacks 9 | . 9 . Record 2 | . 2 . Prototype ID Bank 1 | . 1 . Alert Level 1 | . 1 . Locate Traps 1 | . 1 . Dispatch Records 1 | . 1 . Maintenance Status 1 | . 1 . Hauler Manifests 1 | . 1 . Zone Layout 1 | . 1 . Fabricator Hacks . | . . . Repair Station Hacks . | . . . Recycling Unit Hacks 1 | . 1 . Retrieve Components 1 | . 1 . Scanalyzer . | . . . Garrison Access Hacks . | . . . Unauthorized Hacks . | . . . Terminals . | . . . Fabricators . | . . . Repair Stations . | . . . Recycling Units . | . . . Scanalyzers . | . . . Garrison Access . | . . . Data Cores Recovered . | . . . Used . | . . . Hacking Detections 5 | . 5 . Full Trace Events . | . . . Feedback Events . | . . . Feedback Blocked . | . . . Robot Schematics Acquired . | . . . Robots Built . | . . . Authchips . | . . . Time . | . . . Total Robot Build Rating . | . . . Part Schematics Acquired . | . . . Parts Built . | . . . Authchips . | . . . Time . | . . . Total Part Build Rating . | . . . Part Studies Acquired . | . . . Parts Repaired . | . . . Time . | . . . Parts Recycled . | . . . Recycled Matter . | . . . Retrieved Matter . | . . . Retrieved Components 3 | . 3 . Parts Scanalyzed . | . . . Part Schematics Acquired . | . . . Parts Damaged . | . . . Bothacking | -11 -10 -10 ------------ Run | Yrd Mat Sub Used RIF Installer . | . . . Robots Hacked . | . . . Non-combat . | . . . Combat . | . . . Robot Hacks Applied . | . . . Relay Couplers Released . | . . . Fabnet Peak Effective % . | . . . Robots Rewired . | . . . Allies Hacked . | . . . Hacks Repelled . | . . . Allies | -11 -10 -10 -------- Run | Yrd Mat Sub Total Allies . | . . . Largest Group . | . . . Highest-Rated Group . | . . . Highest-Rated Ally . | . . . Total Orders . | . . . Ally Attacks . | . . . Total Damage . | . . . Kills . | . . . Allies Corrupted . | . . . Allies Melted . | . . . Intel | -11 -10 -10 ------- Run | Yrd Mat Sub Active Infowar (turns) 835 | . 735 100 Structural 835 | . 735 100 Robot Analysis Total . | . . . Derelict Logs Recovered . | . . . Drone Launches . | . . . Drone Recoveries . | . . . Exploration | -11 -10 -10 ------------- Run | Yrd Mat Sub Turns Passed 948 | 53 793 102 Spaces Moved 397 | 38 301 58 Core 8 | 8 . . Treads . | . . . Legs 389 | 30 301 58 Wheels . | . . . Hover . | . . . Flight . | . . . Fastest Speed 50 | 50 120 120 Average Speed 118 | 105 120 120 Slowest Speed 190 | 120 190 120 Overloaded Moves . | . . . Propulsion Burnouts . | . . . Robots Hopped . | . . . Potential Cave-ins . | . . . Cave-ins Triggered . | . . . Exploration Rate (%) 17 | 3 42 7 Regions Visited 2 Branch Regions 1 Pre-discovered Areas . | . . . Known Exits Taken . | . . . Unknown Exits Taken 2 | 1 1 . Scrap Searched . | . . . Spaces Dug . | . . . Terrain Destroyed . | . . . Melee . | . . . Projectile . | . . . AOE . | . . . Terrain Rammed . | . . . Walls Destroyed . | . . . Machines Disabled . | . . . Actions | -11 -10 -10 --------- Run | Yrd Mat Sub Total 774 | 51 645 78 Wait 284 | . 283 1 Move 395 | 37 300 58 Hop . | . . . Pick Up 18 | 8 8 2 Fast Attach 1 | . 1 . Attach 8 | 6 2 . Detach . | . . . Swap 5 | . 2 3 Drop 6 | . 1 5 Fire 57 | . 48 9 Melee . | . . . Ram . | . . . Kick . | . . . Crush . | . . . Escape Stasis . | . . . Rewire . | . . . Trap . | . . . Miscellaneous . | . . . Route ------- -11/Scrapyard -10/Materials (discovered 2 exits: [*Mat] / [*Sub]) -10/Subcaves History --------- Turn | Location | Event 8 | -11/Scrapyard | Discovered new exit (range 16) 54 | -11/Scrapyard | Entered Materials 124 | -10/Materials | Discovered new exit (range 17) 321 | -10/Materials | Build established: Mutant 327 | -10/Materials | Discovered new exit (range 14) 847 | -10/Materials | Entered Subcaves 848 | -10/Subcaves | Approached by a straggling Scientist 889 | -10/Subcaves | Shifting Twisted Machinery released Sub. Machine Gun 891 | -10/Subcaves | Shifting Twisted Machinery released Battle Rifle 897 | -10/Subcaves | Shifting Twisted Machinery released Sub. Shrapnel Launcher 917 | -10/Subcaves | Shifting Twisted Machinery released Sub. Power Source 931 | -10/Subcaves | Ambushed by swarm of Subdwellers 934 | -10/Subcaves | Ambushed by Subdwellers from Twisted Machinery 936 | -10/Subcaves | Core integrity fell below 50% 948 | -10/Subcaves | Core integrity fell below 20% 949 | -10/Subcaves | Destroyed by TR-GIA(R) with Subdweller Beam Cannon Last Messages --------------- 00937_ GB-K43(R) suffers critical hit (Destroy). 00937_ GB-K43(R) destroyed. 00938_ WC-FU1(R) emerges from the Twisted Machinery. 00939_ TR-GIA(R) emerges from the Twisted Machinery. 00940_ 8G-XMN(g): "Sorry we're late! Had another grouchy Sub to deal with. Who's the new fellow?" 00940_ Sml. Laser destroyed. 00942_ 2D-SFD(h) destroyed. 00943_ Dropped Aluminum Leg. 00944_ Subatomizers dissect the Sub. Power Source. 00946_ WC-FU1(R) destroyed. 00946_ Acquired 30 matter. 00946_ 05-SBN(R) affixes Scrap Shield Fragment to Scrap Shield. 00947_ Structural Scanner destroyed. 00948_ Acquired 1 matter. Map ----- +----------------------------------------------------+ | ?????????????????????????????????????????????????? | | ?????????????????????????????????????????????????? | | ?????????????????????????????????????????????????? | | ?#######?????????????????????????????????????????? | | ########?????######?######???????????????????????? | | ### ##?##################??????????????????????? | | %!= ######## #### ####?????????????????????? | | ##### ### ###?????????????????????? | | ] ###### ?## ##?????????????????????? | | # %###### ##??# ##?????????????????????? | | "# #### #### ###?????????????????????? | | # ## #### ## ??????????????????? | | #" ##%#&[ ??????????????????? | | ## *&%!&%% ??????????????????? | | ## ### !&&&&% " ??????????????????? | | ###" [#!########## ##???????????????????? | | ## ###############???????????????????? | | ## #############?????????????????????? | | # ####*= ##############????????????????????? | | # ### #% ####""### #####??????????????????? | | ##### #" ! %### [ "#""""######????????????????? | | #### ##""[ ""##" " #####???????????????? | | ???## ###""" #### ###???????????????? | | ???# ### "" ###### ###??????????????? | | ???# ######"[ ######!! ## ??????? | | ???## ######### ####g=@= ??????? | | ???# #### ##### ## *=RRR[ ;##??????????? | | ???? """" &[g"%R% #########??????????? | | ??????""" gR" # ##########??????????? | | ??????""## # ## ########?????????????????? | | ???????########## ############??????????????????? | | ??????????################???????????????????????? | | ???????????????######????????????????????????????? | | ?????????????????????????????????????????????????? | | ?????????????????????????????????????????????????? | | ?????????????????????????????????????????????????? | | ?????????????????????????????????????????????????? | | ?????????????????????????????????????????????????? | | ?????????????????????????????????????????????????? | | ?????????????????????????????????????????????????? | | ?????????????????????????????????????????????????? | | ?????????????????????????????????????????????????? | | ?????????????????????????????????????????????????? | | ?????????????????????????????????????????????????? | | ?????????????????????????????????????????????????? | | ?????????????????????????????????????????????????? | | ?????????????????????????????????????????????????? | | ?????????????????????????????????????????????????? | | ?????????????????????????????????????????????????? | | ?????????????????????????????????????????????????? | +----------------------------------------------------+ Best States ------------- Heat Dissipation 25 Energy Generation 15 Energy Capacity 250 Matter Stores 300 Matter Capacity 300 Sight Range 16 Terrain Scan Density 10 Evasion (%) 55 Item Schematics ----------------- None Robot Schematics ------------------ None Fabricated ------------ Nothing Repaired ---------- Nothing Studied --------- None Alien Tech Used ----------------- None Achievements -------------- None Challenges ------------ None Game ------ Seed ControlMachineAxe Manual? 0 Play Time 00:16:21 Cumulative 123.5 hours Start 2026.06.26 @ 18:14:26 End 2026.06.26 @ 18:28:04 Sessions 1 Manual Loads 0 Difficulty Rogue Special Mode None Game No. 125 Rogue 125 Adventurer 0 Explorer 0 Win Type - Total 1 Types 0/0/1/0/0/0/0/0/0/0 Lore% 28 Gallery% 47 Achievement% 22 Wizard Run 0 Options --------- Layout 1 ASCII 0 Keyboard 0 Movement Mouse Keybinds 0 Fullscreen 1 Font 24/Smallcaps Map View 50x35 Zoom Use 0% Tactical HUD 1 Map Filters NONE Filters NONE Steam 1 RUN: bc0d33fb-22b1-43ff-98d3-4f31a034e078